Cogmind - Beta 10.2 @@@ ROGUE MODE // 2021.12.10 @ 10:21:07 Player: Hert Result: Destroyed by G-34 Mercenary with Small Laser Performance ------------- Evolutions (0) 0 Regions Visited (2) 400 Robots Destroyed (24) 120 Value Destroyed (579) 579 Prototype IDs (0) 0 Alien Tech Used (0) 0 Bonus (0) 0 TOTAL SCORE: 1099 Bonus ------- None Cogmind --------- Core Integrity 0/250 Matter 34/300 Energy 90/100 System Corruption 0% Temperature Cool (287) Movement Core (550) Ox10 Location -10/Mines Parts ------- > --- POWER (1) -------- (None) > --- PROPULSION (2) --- (None) > --- UTILITY (2) ------ High-capacity Storage Unit > --- WEAPON (2) ------- (None) > --- INVENTORY (12) --- Ion Engine Light Ion Engine Light Ion Engine Wheel Compact Wheel Light Armor Plating Beam Cannon Assault Rifle Assault Rifle Assault Rifle Light Assault Rifle Peak State ------------ > --- POWER ------------ Light Nuclear Core > --- PROPULSION ------- Light Treads Wheel > --- UTILITY ---------- High-capacity Storage Unit Light Armor Plating > --- WEAPON ----------- Medium Laser Grenade Launcher > --- INVENTORY -------- Ion Engine Light Ion Engine Light Ion Engine Wheel Compact Wheel Light Armor Plating Beam Cannon Assault Rifle Assault Rifle Assault Rifle Grenade Launcher [Rating: 10] Favorites ----------- Power Light Nuclear Core Engine Light Ion Engine Power Core Light Nuclear Core Propulsion Light Treads Treads Light Treads Wheel Wheel Utility High-capacity Storage Unit Storage High-capacity Storage Unit Protection Light Armor Plating Weapon Grenade Launcher Energy Gun Medium Laser Ballistic Gun Assault Rifle Launcher Grenade Launcher Build | -11 -10 -10 ------- Run | Scr Mat Min Slots Evolved . | . . . Power . | . . . Propulsion . | . . . Utility . | . . . Weapon . | . . . Parts Attached 16 | 6 7 3 Power 4 | 1 2 1 Engine 3 | 1 2 . Core 1 | . . 1 Reactor . | . . . Propulsion 3 | 2 1 . Treads 2 | 1 1 . Leg . | . . . Wheel 1 | 1 . . Hover . | . . . Flight . | . . . Utility 3 | 1 1 1 Device . | . . . Storage 2 | 1 1 . Processor . | . . . Hackware . | . . . Protection 1 | . . 1 Artifact . | . . . Weapon 6 | 2 3 1 Energy Gun 1 | . 1 . Energy Cannon . | . . . Ballistic Gun 2 | 2 . . Ballistic Cannon . | . . . Launcher 3 | . 2 1 Special Weapon . | . . . Impact Weapon . | . . . Slashing Weapon . | . . . Piercing Weapon . | . . . Special Melee Weapon . | . . . Unidentified Prototypes . | . . . Parts Lost 9 | . 1 8 Power 3 | . 1 2 Propulsion 2 | . . 2 Utility 1 | . . 1 Weapon 3 | . . 3 Highest Loss Streak 6 | . 1 6 Average Slot Usage (%) 92 | . 85 95 Engine 4 | . 14 1 Core 9 | . . 12 Treads 13 | . 14 13 Wheel 13 | . 14 13 Storage 14 | . 14 14 Protection 8 | . . 10 Energy Gun 11 | . 3 14 Ballistic Gun 2 | . 10 . Launcher 13 | . 13 13 Naked Turns . | . . . Heaviest Build 45 | 11 42 45 Greatest Support 20 | 10 10 20 Greatest Overweight (x) 4 | 1 4 4 Average Overweight (x) 3 | . 2 3 Largest Inventory Capacity 12 | 6 12 12 Average Capacity 11 | 4 11 12 Most Carried 12 | 4 12 12 Average Carried 10 | 3 8 11 Final Capacity 12 | 6 12 12 Final Carried 12 | 4 12 11 Class Distribution -------------------- 100% | Mutant Dominant Class ---------------- Mutant | -10/Materials Mutant | -10/Mines Resources | -11 -10 -10 ----------- Run | Scr Mat Min Matter Collected 470 | 216 169 85 Remotely . | . . . Salvage Created 474 | . 298 176 Parts 37 | . 21 16 Haulers Intercepted 1 | . 1 . Recyclers Shooed 1 | . 1 . Parts Field Recycled . | . . . Retrieved Matter . | . . . Parts Self-Destructed . | . . . Prevented . | . . . Kills | -11 -10 -10 ------- Run | Scr Mat Min Combat Hostiles Destroyed 19 | . 7 12 Guns 6 | . 3 3 AOE 13 | . 4 9 Classes Destroyed 6 | . 4 2 Worker 2 | . 2 . Hauler 1 | . 1 . Watcher 3 | . 3 . Swarmer 6 | . . 6 Grunt 12 | . 7 5 Assembled 1 | . . 1 Best Kill Streak 5 | . 5 3 Combat Bots Only 3 | . 3 3 Max Kills in Single Turn 3 | . 2 3 Gunslinging . | . . . Exploded 3 | . 1 3 Melee . | . . . Uniques/NPCs Destroyed . | . . . Combat | -11 -10 -10 -------- Run | Scr Mat Min Damage Taken 1110 | . 408 702 Core 252 | . 70 182 Absorbed by Shields . | . . . Core Remaining (%) 100 | 100 . . Volleys Fired 55 | . 24 31 Largest 2 | . 2 2 Hottest 80 | . 80 80 Shots Fired 91 | . 44 47 Gun 55 | . 24 31 Cannon . | . . . Launcher 36 | . 20 16 Special . | . . . Kinetic 22 | . 22 . Thermal 33 | . 2 31 Explosive 36 | . 20 16 Electromagnetic . | . . . Robot Hit Streak 7 | . 7 5 Robot Miss Streak 3 | . 3 3 Penetration Max . | . . . Secondary Targets . | . . . Shots Hit Robots 40 | . 21 19 Core Hits 41 | . 23 18 Critical Hits . | . . . Critical Kills . | . . . Critical Parts Destroyed . | . . . Melee Attacks . | . . . Impact . | . . . Slashing . | . . . Piercing . | . . . Sneak Attacks . | . . . Combat Hostiles . | . . . Follow-up Attacks . | . . . Damage Inflicted 1746 | . 945 801 Guns 352 | . 189 163 Cannons . | . . . Explosions 1393 | . 755 638 Melee . | . . . Ramming 1 | . 1 . Kinetic 189 | . 189 . Thermal 236 | . . 236 Explosive 1320 | . 755 565 Electromagnetic . | . . . Impact . | . . . Slashing . | . . . Piercing . | . . . Highest Corruption . | . . . Average Corruption . | . . . Corruption Purged . | . . . Overload Shots . | . . . Overflow Damage 9 | . 5 4 Projectiles . | . . . Explosions 9 | . 5 4 Melee . | . . . Knockbacks . | . . . Impact . | . . . Kinetic . | . . . Secondary . | . . . Self-Inflicted Damage 351 | . 184 167 Shots 15 | . 8 7 Rammed 1 | . 1 . Targets Rammed 1 | . 1 . Kicked . | . . . Crushed . | . . . Highest Temperature 275 | . 36 275 Average Temperature 66 | . 8 78 Received Heat Transfer 315 | . 105 210 Siege Activations . | . . . Robots Corrupted . | . . . Combat Hostiles . | . . . Parts Fried . | . . . Impact Corruptions . | . . . Robots Melted . | . . . Combat Hostiles . | . . . Parts Melted . | . . . Heat Transferred 631 | . . 631 Parts Sabotaged . | . . . Parts Stolen . | . . . Parts Stripped . | . . . Power Chain Reactions . | . . . Missiles Intercepted . | . . . Alert | -11 -10 -10 ------- Run | Scr Mat Min Peak Influence 303 | . 273 303 Initial 28 | . . 28 Average 102 | . 159 89 Maximum Alert Level 1 | . 1 1 Low Security (%) 82 | 100 54 90 Level 1 17 | . 45 9 Level 2 . | . . . Level 3 . | . . . Level 4 . | . . . Level 5 . | . . . High Security . | . . . Max Security . | . . . Squads Dispatched 3 | . 3 . Investigation . | . . . Extermination . | . . . Reinforcement 3 | . 3 . Assault . | . . . Garrison . | . . . Intercept . | . . . Construction Impeded . | . . . Haulers Reinforced . | . . . Stealth | -11 -10 -10 --------- Run | Scr Mat Min Distress Signals 1 | . 1 . Communications Jammed . | . . . Distress Signals . | . . . Times Spotted 33 | . 16 17 Peak Tracking Total 6 | . 3 6 Tactical Retreats 1 | . 1 . Traps | -11 -10 -10 ------- Run | Scr Mat Min Traps Triggered . | . . . Indirectly . | . . . Trap Hack Attempts . | . . . Triggered . | . . . Disarmed . | . . . Reprogrammed . | . . . Reused . | . . . Traps Extracted . | . . . Installed . | . . . Triggered . | . . . Machines | -11 -10 -10 ---------- Run | Scr Mat Min Machines Disabled 2 | . . 2 Max in Single Turn 1 | . . 1 Machines Sabotaged . | . . . Garrisons Compromised . | . . . Overloaded Fab Kills . | . . . Fab Network Shutdowns . | . . . Hacking | -11 -10 -10 --------- Run | Scr Mat Min Machines Accessed 1 | . 1 . Terminals . | . . . Fabricators . | . . . Repair Stations . | . . . Recycling Units 1 | . 1 . Scanalyzers . | . . . Garrison Access . | . . . Total Hacks 1 | . 1 . Successful . | . . . Failed 1 | . 1 . Catastrophic . | . . . Database Lockouts . | . . . Manual . | . . . Terminals . | . . . Fabricators . | . . . Repair Stations . | . . . Recycling Units 1 | . 1 . Scanalyzers . | . . . Garrison Access . | . . . Terminal Hacks . | . . . Fabricator Hacks . | . . . Repair Station Hacks . | . . . Recycling Unit Hacks . | . . . Scanalyzer . | . . . Garrison Access Hacks . | . . . Unauthorized Hacks . | . . . Terminals . | . . . Fabricators . | . . . Repair Stations . | . . . Recycling Units . | . . . Scanalyzers . | . . . Garrison Access . | . . . Data Cores Recovered . | . . . Used . | . . . Hacking Detections . | . . . Full Trace Events . | . . . Feedback Events . | . . . Feedback Blocked . | . . . Robot Schematics Acquired . | . . . Robots Built . | . . . Matter . | . . . Time . | . . . Total Robot Build Rating . | . . . Part Schematics Acquired . | . . . Parts Built . | . . . Matter . | . . . Time . | . . . Total Part Build Rating . | . . . Parts Repaired . | . . . Time . | . . . Parts Recycled . | . . . Recycled Matter . | . . . Retrieved Matter . | . . . Retrieved Components . | . . . Parts Scanalyzed . | . . . Part Schematics Acquired . | . . . Parts Damaged . | . . . Bothacking | -11 -10 -10 ------------ Run | Scr Mat Min Used RIF Installer . | . . . Robots Hacked . | . . . Non-combat . | . . . Combat . | . . . Robot Hacks Applied . | . . . Relay Couplers Released . | . . . Robots Rewired . | . . . Allies Hacked . | . . . Hacks Repelled . | . . . Allies | -11 -10 -10 -------- Run | Scr Mat Min Total Allies . | . . . Largest Group . | . . . Highest-Rated Group . | . . . Highest-Rated Ally . | . . . Total Orders . | . . . Ally Attacks . | . . . Total Damage . | . . . Kills . | . . . Allies Corrupted . | . . . Allies Melted . | . . . Intel | -11 -10 -10 ------- Run | Scr Mat Min Robot Analysis Total . | . . . Derelict Logs Recovered 2 | . . 2 Drone Launches . | . . . Drone Recoveries . | . . . Exploration | -11 -10 -10 ------------- Run | Scr Mat Min Turns Passed 1709 | 57 401 1251 Spaces Moved 623 | 43 285 295 Core 3 | 3 . . Treads 59 | . . 59 Legs . | . . . Wheels 561 | 40 285 236 Hover . | . . . Flight . | . . . Fastest Speed 50 | 50 90 110 Average Speed 119 | 82 109 135 Slowest Speed 200 | 90 120 200 Overloaded Moves . | . . . Propulsion Burnouts . | . . . Robots Hopped . | . . . Cave-ins Triggered . | . . . Exploration Rate (%) 36 | 3 50 56 Regions Visited 2 Branch Regions 1 Pre-discovered Areas 1 | . . 1 Known Exits Taken . | . . . Unknown Exits Taken 2 | 1 1 . Scrap Searched 1 | . . 1 Spaces Dug . | . . . Terrain Destroyed 241 | . 134 107 Melee . | . . . Projectile . | . . . AOE 241 | . 134 107 Terrain Rammed . | . . . Walls Destroyed . | . . . Machines Disabled . | . . . Actions | -11 -10 -10 --------- Run | Scr Mat Min Total 1492 | 64 327 1101 Wait 774 | 7 . 767 Move 621 | 42 284 295 Hop . | . . . Pick Up 22 | 9 10 3 Fast Attach 2 | 1 . 1 Attach 8 | 5 1 2 Detach . | . . . Swap 6 | . 6 . Drop 3 | . 1 2 Fire 55 | . 24 31 Melee . | . . . Ram 1 | . 1 . Kick . | . . . Crush . | . . . Escape Stasis . | . . . Rewire . | . . . Trap . | . . . Miscellaneous . | . . . Route ------- -11/Scrapyard -10/Materials (discovered 3 exits: [*Mat x2] / [*Min]) -10/Mines History --------- Turn | Location | Event 27 | -11/Scrapyard | Discovered new exit (range 14) 58 | -11/Scrapyard | Entered Materials 101 | -10/Materials | Discovered new exit (range 11) 191 | -10/Materials | Discovered new exit (range 12) 311 | -10/Materials | Discovered new exit (range 15) 313 | -10/Materials | Build established: Mutant 459 | -10/Materials | Entered Mines 602 | -10/Mines | Learned Materials security intel 729 | -10/Mines | Core integrity fell below 50% 781 | -10/Mines | Excavation squad dispatched 781 | -10/Mines | A large section of the Mines collapsed 1031 | -10/Mines | Excavation squad dispatched 1281 | -10/Mines | Excavation squad dispatched 1531 | -10/Mines | Excavation squad dispatched 1707 | -10/Mines | Core integrity fell below 20% 1710 | -10/Mines | Destroyed by G-34 Mercenary with Small Laser Last Messages --------------- 00781_ ALERT: Suspicious cave-in, suspected derelict activity in mines. Dispatching escorted excavation squad. 00994_ Grenade Launcher destroyed. 00999_ as-88832 destroyed. 01024_ The unstable cave ceiling collapses. 01031_ ALERT: Derelict activity in mines confirmed. Dispatching additional escorted excavation squad. 01036_ The unstable cave ceiling collapses. 01281_ ALERT: Derelict activity in mines confirmed. Dispatching additional escorted excavation squad. 01312_ The unstable cave ceiling collapses. 01531_ ALERT: Derelict activity in mines confirmed. Dispatching additional escorted excavation squad. 01685_ T-07 Excavator is excavating. 01692_ U-05 Engineer lays Concrete. 01692_ Wheel destroyed. 01694_ U-05 Engineer lays Concrete. 01700_ Grenade Launcher destroyed. 01700_ G-34 Mercenary destroyed. 01704_ Lgt. Armor Plating destroyed. 01706_ Lgt. Nuclear Core destroyed. 01707_ Lgt. Treads destroyed. 01708_ G-34 Mercenary destroyed. 01710_ Med. Laser destroyed. Map ----- +----------------------------------------------------+ | ???????????# ## ### ## #??????? | | ???????????## ????### #?############ #??????? | | ????????????????????## ##???????????# #?####?? | | ????????????????????## #???????????# ### #?? | | ???????????????????## #???????????# #? | | ??????????????????## ##??????????#### #?? | | ??????????????????# ###???????????#####?? | | ??????????????????# ##????????????????? | | ?????????????????## #????????????????? | | ??????????######## #????????????????? | | ??????????# ! #???????????????? | | ??????????# = #??????????????? | | ??????????# [ #### #?????????????? | | ?????????## #### ## #?????????????? | | ?????????# * # ## # ##?????????????? | | ????????## # ## ## #??????????????? | | ????????# # ## #? #?????????????? | | ????????# " ## #?# ?????????????? | | ????????# #### ????????????? | | ????????## "### g #?# ??????????????? | | ????????# "#?#### #??????????????????? | | ????????## ##????#t#??????????????????? | | ?????????## ""#?????#t#####??????????????? | | ??????????### ###????## g # #??????????????? | | ????????????#### ??????#ggg=# #??????????????? | | ???????????## ???##t@g ###### "?????? | | ???????????# = ### # "?????? | | ??????????#" % =## ## ????? | | ??????????#" = # ####### "?????? | | ??????????#" # #??????????"?????? | | ??????????#" # ####????????????????? | | ??????????##" "" " ########?????????????????? | | ???????????### ###??????????????????????????? | | ?????????????#???????????????????????????????? | | ?????????????????????????????????????????????? | | ?????????????????????????????????????????????? | | ?????????????????????????????????????????????? | | ?????????????????????????????????????????????? | | ?????????????????????????????????????????????? | | | | | | | | | | | | | | | | | | | | | | | +----------------------------------------------------+ Best States ------------- Heat Dissipation 25 Energy Generation 14 Energy Capacity 250 Matter Stores 256 Matter Capacity 300 Sight Range 16 Terrain Scan Density 10 Armor Coverage 150 Evasion (%) 44 Recoil Reduction 1 Item Schematics ----------------- None Robot Schematics ------------------ None Fabricated ------------ Nothing Alien Tech Used ----------------- None Achievements -------------- None Challenges ------------ None Game ------ Seed FlightStorageDoomcannon Manual? 0 Play Time 00:14:09 Cumulative 20.5 hours Start 2021.12.10 @ 10:09:23 End 2021.12.10 @ 10:21:07 Sessions 1 Manual Loads 0 Difficulty Rogue Special Mode None Game No. 27 Rogue 27 Adventurer 0 Explorer 0 Win Type - Total 0 Types 0/0/0/0/0/0/0/0/0 Lore% 21 Gallery% 25 Achievement% 20 Wizard Run 0 Options --------- ASCII 0 Keyboard 0 Movement Mouse Keybinds 0 Fullscreen 2 Font 24/Terminus Map View 130x56 Tactical HUD 1 Map Filters NONE Filters NONE Steam 1 RUN: c8ddb77b-facf-4afa-baf1-d8af9b74dfd8